bitfinex-derivatives/quotes_SOLF0:USTF0_20250424
["timestamp","ask_amount","ask_price","bid_price","bid_amount"]
[1745510881925,6.6768,149.73,149.7,6.6777]
[1745510882126,24.98,149.75,149.69,6.6781]
[1745510882527,6.677,149.72,149.69,6.6781]
[1745510882722,24.98,149.75,149.7,6.6778]
[1745510882924,24.98,149.75,149.67,20.1524849]
[1745510883227,24.98,149.75,149.7,20.1524849]
[1745510883527,24.98,149.79,149.7,20.1524849]
[1745510883734,24.98,149.79,149.69,24.98]
[1745510883735,6.674,149.79,149.73,20.1524849]
[1745510883927,24.98,149.8,149.77,6.6746]
[1745510884229,24.98,149.8,149.76,20.1524849]
[1745510884433,6.6727,149.82,149.76,20.1524849]
[1745510884729,24.98,149.83,149.76,20.1524849]
[1745510884926,6.6737,149.8,149.77,6.6745]
[1745510885334,6.6737,149.8,149.76,20.1524849]
[1745510885532,6.6741,149.79,149.76,20.1524849]
[1745510885728,24.98,149.83,149.73,45.1324849]
[1745510886031,20.1524849,149.81,149.71,8.7531]
[1745510886228,20.1524849,149.81,149.71,6.6771]
[1745510886425,20.1524849,149.81,149.7,24.98]
[1745510886625,20.1524849,149.81,149.7,31.6575]
[1745510886832,20.1524849,149.81,149.7,24.98]
[1745510887030,20.1524849,149.81,149.72,6.6767]
[1745510887531,20.1524849,149.81,149.71,6.6772]
[1745510887732,1.9354,149.8,149.7,24.98]
[1745510888027,24.96,149.79,149.69,20.1524849]
[1745510888231,26.8497,149.79,149.7,6.6775]
[1745510888431,2.0145,149.78,149.67,30.7617]
[1745510888827,2.0145,149.78,149.69,20.1524849]
[1745510889033,2.0145,149.78,149.67,30.7617]
[1745510889731,20.1524849,149.75,149.64,20.1524849]
[1745510890038,27.0126,149.74,149.64,20.1524849]
[1745510890739,6.6772,149.72,149.68,6.6785]
[1745510891037,27.0126,149.74,149.67,20.1524849]
[1745510891238,27.0126,149.74,149.69,6.678]
[1745510891728,33.6888,149.74,149.67,20.1524849]
[1745510892037,24.96,149.74,149.67,20.1524849]
[1745510892236,31.6361,149.74,149.7,6.6776]
[1745510892535,24.96,149.74,149.67,20.1524849]
[1745510892937,31.6361,149.74,149.67,20.1524849]
[1745510893140,24.96,149.74,149.67,20.1524849]
[1745510893737,6.6773,149.72,149.69,6.678]
[1745510893938,24.96,149.74,149.66,24.96]
[1745510894135,24.96,149.74,149.66,45.1124849]
[1745510895340,24.96,149.74,149.63,45.1124849]
[1745510895937,45.1124849,149.74,149.63,24.96]
[1745510896240,6.6776,149.71,149.68,6.6786]
[1745510896441,24.96,149.74,149.65,20.1524849]
[1745510897539,6.6775,149.71,149.68,6.6784]
[1745510897742,24.96,149.74,149.65,20.1524849]
[1745510898543,6.6767,149.73,149.7,6.6778]
[1745510898740,6.6767,149.73,149.65,20.1524849]
[1745510899036,24.96,149.74,149.68,20.1524849]
[1745510899239,6.6765,149.73,149.68,20.1524849]
[1745510899443,24.96,149.74,149.68,20.1524849]
[1745510899644,6.6766,149.73,149.7,6.6777]
[1745510899837,24.96,149.74,149.68,20.1524849]
[1745510900241,31.6361,149.74,149.71,6.6772]
[1745510900841,6.6766,149.73,149.7,6.6776]
[1745510901340,24.96,149.74,149.68,20.1524849]
[1745510901540,31.6362,149.74,149.71,6.6771]
[1745510902142,24.96,149.74,149.68,20.1524849]
[1745510902441,24.96,149.77,149.68,22.1175849]
[1745510902643,6.6759,149.75,149.72,6.6767]
[1745510903141,6.6759,149.75,149.73,6.6765]
[1745510903636,24.96,149.77,149.74,6.6759]
[1745510903840,24.96,149.77,149.72,12.57681794]
[1745510904444,24.96,149.77,149.74,6.6758]
[1745510904944,24.96,149.8,149.74,12.57681794]
[1745510905246,24.96,149.84,149.78,12.57681794]
[1745510905744,6.6727,149.82,149.79,6.6736]
[1745510906436,1.9866,149.85,149.78,12.57681794]
[1745510906837,24.96,149.84,149.78,12.57681794]
[1745510907045,24.96,149.84,149.77,6.6744]
[1745510907244,37.53681794,149.84,149.74,14.50201794]
[1745510907436,12.57681794,149.82,149.74,12.57681794]
[1745510907640,6.6744,149.78,149.75,6.6754]
[1745510907845,12.57681794,149.82,149.74,12.57681794]
[1745510908042,6.6742,149.79,149.76,6.6752]
[1745510908545,24.96,149.8,149.74,12.57681794]
[1745510908738,31.6336,149.8,149.77,6.6745]
[1745510908942,24.96,149.8,149.74,12.57681794]
[1745510909247,6.6738,149.79,149.76,6.6749]
[1745510909447,6.6738,149.79,149.74,12.57681794]
[1745510909848,6.6738,149.79,149.76,6.6749]
[1745510910149,24.96,149.8,149.76,12.57681794]
[1745510910543,26.9937,149.83,149.78,6.6741]
[1745510910849,26.9937,149.83,149.76,12.57681794]
[1745510911043,26.9937,149.83,149.77,6.6745]
[1745510911245,26.9937,149.83,149.74,12.57681794]
[1745510911547,26.9937,149.83,149.76,6.6751]
[1745510911749,26.9937,149.83,149.74,12.57681794]
[1745510912051,26.9937,149.83,149.76,6.6751]
[1745510912245,6.6741,149.79,149.76,6.6751]
[1745510913151,12.57681794,149.82,149.72,39.52501794]
[1745510913346,12.57681794,149.8,149.72,24.96]
[1745510913547,26.9199,149.79,149.71,3.9557]
[1745510913747,26.9199,149.79,149.73,6.6761]
[1745510914353,26.9199,149.79,149.72,6.6768]
[1745510914753,6.6758,149.75,149.72,6.6768]
[1745510914953,26.9199,149.79,149.71,3.9557]
[1745510915453,6.675,149.77,149.74,6.676]
[1745510915755,26.9199,149.79,149.71,3.9557]
[1745510915952,6.6755,149.76,149.73,6.6762]
[1745510916153,26.9199,149.79,149.73,6.6762]
[1745510916453,26.9199,149.79,149.72,6.6767]
[1745510916647,12.57681794,149.76,149.66,37.53681794]
[1745510916953,24.96,149.75,149.66,37.53681794]
[1745510917144,12.57681794,149.74,149.66,24.96]
[1745510917344,12.57681794,149.74,149.66,37.53681794]
[1745510917550,6.6772,149.72,149.66,37.53681794]
[1745510917744,26.9085,149.75,149.66,37.53681794]
[1745510917745,24.96,149.75,149.68,12.57681794]
[1745510918144,24.96,149.75,149.7,6.6778]
[1745510918345,24.96,149.75,149.68,12.57681794]
[1745510918854,6.6767,149.73,149.7,6.6775]
[1745510919055,6.6767,149.73,149.68,12.57681794]
[1745510919251,6.6764,149.74,149.71,6.6769]
[1745510919453,24.96,149.75,149.68,20.12514136]
[1745510919653,26.9599,149.78,149.68,20.12514136]
[1745510919955,26.9599,149.78,149.69,2.0059]
[1745510920654,6.6758,149.75,149.72,6.6769]
[1745510921155,6.6752,149.76,149.69,2.0059]
[1745510921457,26.9599,149.78,149.69,2.0059]
[1745510921955,6.676,149.75,149.72,6.6767]
[1745510922448,26.9599,149.78,149.72,6.6767]
[1745510922650,26.9599,149.78,149.7,6.6775]
[1745510923056,6.6777,149.71,149.66,24.96]
[1745510923256,24.94,149.74,149.67,6.6789]
[1745510923455,24.94,149.74,149.66,24.96]
[1745510923755,6.6781,149.7,149.67,6.679]
[1745510924053,6.6776,149.71,149.66,24.96]
[1745510924253,6.6776,149.71,149.68,6.6785]
[1745510924857,24.94,149.74,149.7,6.6775]
[1745510925360,24.94,149.74,149.69,6.6781]
[1745510925758,24.94,149.74,149.66,24.96]
[1745510926057,24.94,149.74,149.67,6.6787]
[1745510926352,6.6781,149.7,149.67,6.6787]
[1745510926557,24.94,149.74,149.66,24.96]
[1745510927059,24.94,149.74,149.7,6.6775]
[1745510927366,6.6768,149.73,149.66,24.96]
[1745510927658,24.94,149.74,149.66,24.96]
[1745510927860,6.6772,149.72,149.66,24.96]
[1745510928162,6.6772,149.72,149.69,6.678]
[1745510928862,24.94,149.74,149.66,24.96]
[1745510929564,6.6771,149.72,149.68,6.6783]
[1745510929863,24.94,149.74,149.68,6.6783]
[1745510930053,24.94,149.74,149.67,6.6791]
[1745510930454,24.94,149.74,149.66,24.96]
[1745510930652,24.94,149.74,149.67,6.6791]
[1745510930955,24.94,149.74,149.65,22.04414136]
[1745510931158,24.94,149.74,149.66,6.6794]
[1745510931365,2.0314,149.73,149.66,6.6794]
[1745510931560,2.0314,149.73,149.64,3.9754]
[1745510931765,2.0314,149.73,149.65,6.6797]
[1745510932064,1.9707,149.72,149.65,6.6797]
[1745510932363,1.9707,149.72,149.66,6.6796]
[1745510932961,1.9707,149.72,149.65,6.6798]
[1745510933161,1.9707,149.72,149.63,24.94]
[1745510933560,2.0314,149.73,149.69,6.6783]
[1745510933759,2.0314,149.73,149.65,20.12514136]
[1745510933961,6.6777,149.71,149.68,6.6784]
[1745510934265,2.0314,149.73,149.65,20.12514136]
[1745510934868,6.6776,149.71,149.68,6.6784]
[1745510935364,6.6783,149.7,149.67,6.6791]
[1745510935564,2.0314,149.73,149.65,20.12514136]
[1745510935865,2.0314,149.73,149.65,6.6798]
[1745510936065,2.0314,149.73,149.63,24.94]
[1745510936371,6.6797,149.66,149.64,6.6803]
[1745510936866,24.94,149.7,149.63,24.94]
[1745510937068,6.6788,149.68,149.65,6.6799]
[1745510937364,24.94,149.7,149.65,6.6799]
[1745510937569,6.6791,149.68,149.65,6.6799]
[1745510937771,24.94,149.7,149.64,6.6804]
[1745510938070,6.6805,149.64,149.6,26.945]
[1745510938270,24.94,149.7,149.61,6.6815]
[1745510938470,1.9509,149.69,149.61,6.6815]
[1745510938666,6.681,149.63,149.6,33.6271]
[1745510938966,22.07604136,149.69,149.6,6.6821]
[1745510939167,6.6807,149.64,149.61,6.6815]
[1745510939373,24.96,149.66,149.59,1.8871]
[1745510939573,24.96,149.66,149.59,14.48305419]
[1745510940273,6.6806,149.64,149.59,14.48305419]
[1745510940675,24.96,149.66,149.59,14.48305419]
[1745510941170,6.6806,149.64,149.61,6.6816]
[1745510941378,24.96,149.66,149.59,14.48305419]
[1745510941572,24.96,149.66,149.59,1.8871]
[1745510941866,6.6814,149.63,149.6,6.6822]
[1745510942265,6.6814,149.63,149.61,6.6818]
[1745510942576,6.6814,149.63,149.59,1.8871]
[1745510942978,6.6807,149.64,149.59,1.8871]
[1745510943373,24.96,149.66,149.59,1.8871]
[1745510943576,26.9109,149.69,149.63,20.15367314]
[1745510943876,24.96,149.69,149.63,20.15367314]
[1745510944068,24.96,149.69,149.67,6.6791]
[1745510944475,24.96,149.69,149.63,20.15367314]
[1745510944667,31.6385,149.69,149.66,6.6793]
[1745510944870,24.96,149.69,149.61,24.96]
[1745510945069,1.882,149.68,149.61,24.96]
[1745510945278,6.6806,149.64,149.59,22.04077314]
[1745510945478,24.96,149.65,149.58,24.96]
[1745510945674,6.6813,149.63,149.6,6.6821]
[1745510946173,6.6823,149.6,149.58,31.6429]
[1745510946477,24.96,149.65,149.56,2.0547]
[1745510946975,6.6819,149.61,149.58,6.6828]
[1745510947472,6.6819,149.61,149.56,2.0547]
[1745510948279,6.6819,149.61,149.59,6.6827]
[1745510948578,24.96,149.65,149.56,2.0547]
[1745510948972,6.6827,149.6,149.56,2.0547]
[1745510949379,6.6827,149.6,149.57,6.6834]
[1745510949778,6.6831,149.59,149.55,24.96]
[1745510950173,24.96,149.61,149.56,6.684]
[1745510950575,24.96,149.61,149.56,6.6841]
[1745510950873,24.96,149.61,149.52,47.07057314]
[1745510951079,6.6826,149.6,149.52,47.07057314]
[1745510951480,6.6828,149.59,149.52,47.07057314]
[1745510952177,24.96,149.61,149.52,26.9169]
[1745510952378,1.9105,149.6,149.52,24.96]
[1745510952678,5.8843,149.6,149.51,1.9302]
[1745510953375,6.6839,149.57,149.51,1.9302]
[1745510953776,6.6842,149.56,149.53,6.6851]
[1745510954085,5.8843,149.6,149.51,1.9302]
[1745510954281,6.684,149.57,149.51,1.9302]
[1745510954484,24.96,149.57,149.49,20.15367314]
[1745510955486,24.96,149.57,149.51,6.6859]
[1745510955487,6.6848,149.55,149.51,6.6859]
[1745510955985,6.6843,149.56,149.53,6.6854]
[1745510956186,24.96,149.57,149.53,6.6854]
[1745510956485,31.6441,149.57,149.53,6.6854]
[1745510956690,24.96,149.57,149.53,6.6854]
[1745510957388,6.6844,149.56,149.53,6.6854]
[1745510957588,24.96,149.57,149.52,6.6857]
[1745510958381,24.96,149.57,149.53,6.6853]
[1745510958690,6.6843,149.56,149.53,6.6853]
[1745510959189,24.96,149.57,149.49,20.15367314]
[1745510959593,24.96,149.57,149.56,6.6841]
[1745510959890,35.5584,149.6,149.52,45.11367314]
[1745510960078,31.6425,149.6,149.52,45.11367314]
[1745510960283,24.96,149.6,149.58,6.6831]
[1745510960591,24.96,149.6,149.55,20.15367314]
[1745510960985,487.761,149.63,149.55,20.15367314]
[1745510961290,31.641,149.63,149.55,20.15367314]
[1745510961583,24.96,149.63,149.61,6.6816]
[1745510962589,31.641,149.63,149.6,6.6821]
[1745510963886,37.55844825,149.63,149.52,24.96]
[1745510964091,37.55844825,149.63,149.54,12.59844825]
[1745510964888,12.59844825,149.61,149.52,39.50254825]
[1745510965092,6.6835,149.58,149.55,6.6843]
[1745510965392,24.96,149.59,149.52,14.54254825]
[1745510965690,6.6837,149.57,149.54,6.6847]
[1745510965987,24.96,149.59,149.52,1.9441]
[1745510966187,6.6844,149.56,149.53,6.6852]
[1745510967091,1.9724,149.58,149.49,24.96]
[1745510967389,12.59844825,149.56,149.48,1.9441]
[1745510967594,12.59844825,149.52,149.46,26.8447]
[1745510967786,6.6865,149.51,149.46,26.8447]
[1745510968588,12.59844825,149.54,149.46,26.8447]
[1745510968793,24.96,149.55,149.47,12.59844825]
[1745510969092,24.96,149.55,149.49,12.59844825]
[1745510969292,1.876,149.57,149.48,20.1781899]
[1745510969494,1.876,149.57,149.49,1.9892]
[1745510969893,6.6843,149.56,149.49,1.9892]
[1745510970292,6.6846,149.55,149.52,6.6856]
[1745510970593,1.876,149.57,149.49,1.9892]
[1745510970994,6.6846,149.55,149.52,6.6855]
[1745510971293,1.876,149.57,149.49,1.9892]
[1745510971493,24.96,149.58,149.49,1.9892]
[1745510971689,24.96,149.58,149.51,20.1781899]
[1745510971996,506.16,149.61,149.52,2.023]
[1745510972892,506.16,149.61,149.56,6.6838]
[1745510973193,506.16,149.61,149.52,2.023]
[1745510973395,24.96,149.61,149.54,20.1781899]
[1745510973595,24.96,149.61,149.54,45.1381899]
[1745510973791,24.96,149.64,149.55,1.9029]
[1745510973995,6.6812,149.63,149.6,6.682]
[1745510974295,24.96,149.64,149.55,1.9029]
[1745510975392,6.682,149.61,149.58,6.6828]
[1745510975797,24.96,149.64,149.55,1.9029]
[1745510977699,45.1381899,149.64,149.52,22.2011899]
[1745510978601,6.6835,149.58,149.55,6.6843]
[1745510978797,24.96,149.59,149.52,22.2011899]
[1745510979501,31.643,149.59,149.56,6.6838]
[1745510979700,24.96,149.59,149.52,22.2011899]
[1745510980001,24.96,149.62,149.52,22.2011899]
[1745510980202,6.6826,149.6,149.57,6.6835]
[1745510980497,24.96,149.62,149.52,22.2011899]
[1745510980693,6.6822,149.61,149.52,22.2011899]
[1745510980897,24.96,149.62,149.52,22.2011899]
[1745510981803,24.96,149.62,149.55,20.1781899]
[1745510982102,6.6819,149.61,149.58,6.6829]
[1745510982404,24.96,149.62,149.55,45.1381899]
[1745510982796,31.6416,149.62,149.59,6.6824]
[1745510984400,24.96,149.62,149.55,45.1381899]
[1745510984602,24.96,149.65,149.58,20.1781899]
[1745510984804,1.9702,149.66,149.58,20.1781899]
[1745510984805,26.9302,149.66,149.58,20.1781899]
[1745510985004,6.6803,149.65,149.62,6.6812]
[1745510985504,31.6398,149.66,149.63,6.6809]
[1745510985803,24.96,149.66,149.61,20.1781899]
[1745510985999,24.94,149.69,149.61,20.1781899]
[1745510987506,24.94,149.69,149.62,6.6813]
[1745510987807,24.94,149.69,149.61,20.1781899]
[1745510988406,6.6794,149.67,149.61,20.1781899]
[1745510988606,24.94,149.69,149.61,20.1781899]
[1745510989106,24.94,149.69,149.62,6.6812]
[1745510989309,24.94,149.69,149.61,20.1781899]
[1745510989503,24.94,149.69,149.6,26.877]
[1745510989704,24.94,149.69,149.6,24.94]
[1745510989904,24.94,149.69,149.58,20.1781899]
[1745510990105,6.6822,149.61,149.58,6.6832]
[1745510990409,24.94,149.64,149.57,24.94]
[1745510991411,24.94,149.64,149.55,22.2234899]
[1745510991709,6.6821,149.61,149.58,6.683]
[1745510991909,6.6821,149.61,149.55,22.2234899]
[1745510992311,6.6821,149.61,149.58,6.6829]
[1745510993012,6.6821,149.61,149.59,6.6827]
[1745510993207,6.6816,149.62,149.59,6.6827]
[1745510993713,6.6819,149.61,149.58,6.6831]
[1745510993913,24.94,149.64,149.58,6.6831]
[1745510994211,24.94,149.64,149.55,22.2234899]
[1745510994408,6.6817,149.62,149.59,6.6825]
[1745510996617,24.94,149.64,149.59,6.6825]
[1745510997617,6.6818,149.62,149.59,6.6825]
[1745510998016,24.94,149.64,149.58,6.683]
[1745510998913,24.94,149.64,149.57,6.6834]
[1745510999219,45.1181899,149.64,149.54,28.8595]
[1745510999515,6.684,149.57,149.54,6.6847]
[1745510999710,24.94,149.59,149.52,355.0]
[1745510999916,24.94,149.59,149.51,37.54930701]
[1745511000115,29.0604,149.59,149.52,6.6857]
[1745511000316,12.60930701,149.58,149.5,2.0032]
[1745511000512,6.6853,149.54,149.5,2.0032]
[1745511000818,12.60930701,149.58,149.5,2.0032]
[1745511001321,6.6843,149.56,149.5,2.0032]
[1745511001815,29.0604,149.59,149.5,2.0032]
[1745511002021,29.0604,149.59,149.51,20.17942382]
[1745511002319,24.94,149.6,149.52,24.94]
[1745511002811,24.94,149.6,149.57,6.6835]
[1745511003013,24.94,149.6,149.54,20.17942382]
[1745511003320,24.94,149.63,149.54,20.17942382]
[1745511003818,24.94,149.63,149.57,6.6832]
[1745511004121,6.6824,149.6,149.57,6.6832]
[1745511004418,6.6824,149.6,149.54,20.17942382]
[1745511004419,6.683,149.59,149.56,6.684]
[1745511004813,24.94,149.63,149.54,20.17942382]
[1745511005014,6.6824,149.6,149.57,6.6834]
[1745511005211,24.94,149.63,149.54,20.17942382]
[1745511005420,24.94,149.63,149.57,6.6836]
[1745511005620,6.6823,149.61,149.54,20.17942382]
[1745511005822,24.94,149.63,149.54,20.17942382]
[1745511006015,24.94,149.63,149.57,6.6833]
[1745511006419,24.94,149.63,149.54,20.17942382]
[1745511006726,6.6824,149.6,149.54,20.17942382]
[1745511007223,24.94,149.63,149.54,20.17942382]
[1745511007423,24.94,149.63,149.52,24.94]
[1745511007724,6.683,149.59,149.56,6.6838]
[1745511007921,31.643,149.59,149.56,6.6838]
[1745511008825,24.96,149.59,149.58,6.6832]
[1745511009022,24.96,149.63,149.54,20.17942382]
[1745511009220,24.96,149.63,149.55,3.8928]
[1745511009421,31.6412,149.63,149.6,6.682]
[1745511009622,31.6412,149.63,149.56,1.9483]
[1745511009924,31.6412,149.63,149.6,6.6821]
[1745511010226,6.6816,149.62,149.56,26.9083]
[1745511010426,24.96,149.63,149.56,26.9083]
[1745511010826,24.96,149.63,149.53,24.96]
[1745511011018,45.13942382,149.63,149.52,20.17942382]
[1745511011630,6.6835,149.58,149.55,6.6845]
[1745511011828,45.13942382,149.63,149.52,20.17942382]
[1745511012126,24.96,149.63,149.52,20.17942382]
[1745511012327,6.6822,149.61,149.57,6.6835]
[1745511012628,24.96,149.63,149.52,20.17942382]
[1745511012818,6.6817,149.62,149.58,6.683]
[1745511013127,24.96,149.63,149.58,6.683]
[1745511013628,24.96,149.63,149.54,24.94]
[1745511014228,24.96,149.63,149.56,20.17942382]
[1745511014429,4.0308,149.65,149.57,1.963]
[1745511015125,6.6807,149.64,149.57,1.963]
[1745511015329,4.0308,149.65,149.57,1.963]
[1745511015628,4.0308,149.65,149.61,6.6815]
[1745511016231,10.7111,149.65,149.61,6.6815]
[1745511016432,10.7111,149.65,149.62,6.6814]
[1745511016732,24.94,149.66,149.58,24.94]
[1745511017231,24.94,149.66,149.62,6.6813]
[1745511017433,6.6804,149.65,149.62,6.6813]
[1745511017632,24.94,149.66,149.62,6.6813]
[1745511017835,6.6805,149.65,149.62,6.6813]
[1745511018034,24.94,149.66,149.62,6.6813]
[1745511018333,31.62,149.66,149.63,6.6809]
[1745511019130,31.62,149.66,149.58,24.94]
[1745511019336,24.94,149.66,149.59,20.17942382]
[1745511019835,24.94,149.66,149.64,6.6801]
[1745511020031,31.6197,149.66,149.64,6.6801]
[1745511020234,24.94,149.66,149.64,6.6801]
[1745511020429,24.94,149.66,149.59,20.17942382]
[1745511020629,6.681,149.63,149.57,5.9418]
[1745511021237,6.6807,149.64,149.57,5.9418]
[1745511021437,24.94,149.66,149.58,12.59722959]
[1745511021830,31.6199,149.66,149.58,12.59722959]
[1745511022333,31.6199,149.66,149.6,12.59722959]
[1745511022530,24.94,149.66,149.6,12.59722959]
[1745511023132,24.94,149.66,149.65,6.6801]
[1745511023337,24.94,149.66,149.62,12.59722959]
[1745511023733,24.94,149.66,149.64,6.6802]
[1745511024030,24.94,149.66,149.6,12.59722959]
[1745511024542,6.6803,149.65,149.63,6.6809]
[1745511024738,24.94,149.66,149.63,6.6809]
[1745511025137,31.6199,149.66,149.63,6.6809]
[1745511025339,24.94,149.66,149.62,6.6812]
[1745511025539,24.94,149.66,149.59,24.94]
[1745511025837,6.6807,149.64,149.59,24.94]
[1745511026438,6.6802,149.65,149.59,24.94]
[1745511026733,24.94,149.66,149.59,24.94]
[1745511026937,31.6198,149.66,149.63,6.6807]
[1745511027542,24.94,149.66,149.64,6.6803]
[1745511027839,24.94,149.66,149.62,12.59722959]
[1745511028040,31.6199,149.66,149.63,6.6809]
[1745511030838,31.6199,149.66,149.64,6.6805]
[1745511031044,24.94,149.66,149.64,6.6805]
[1745511032047,24.94,149.66,149.65,6.6801]
[1745511032647,24.94,149.66,149.64,6.6803]
[1745511033246,24.94,149.69,149.64,6.6803]
[1745511033443,24.94,149.69,149.65,6.68]
[1745511034452,24.94,149.69,149.64,6.6803]
[1745511035449,6.6799,149.66,149.64,6.6803]
[1745511035747,24.94,149.69,149.65,6.6801]
[1745511036450,6.6794,149.67,149.65,6.6801]
[1745511036655,24.94,149.69,149.65,6.6801]
[1745511036951,6.6788,149.68,149.65,6.6801]
[1745511037147,24.94,149.69,149.65,6.6801]
[1745511037348,37.53722959,149.69,149.59,24.94]
[1745511037546,12.59722959,149.67,149.59,24.94]
[1745511038054,12.59722959,149.67,149.61,6.6816]
[1745511038348,12.59722959,149.67,149.59,24.94]
[1745511038554,6.6806,149.64,149.62,6.6811]
[1745511039153,6.6806,149.64,149.61,6.6816]
[1745511039456,6.681,149.63,149.61,6.6816]
[1745511040048,6.681,149.63,149.6,6.6821]
[1745511040654,6.681,149.63,149.61,6.6818]
[1745511041554,6.6806,149.64,149.62,6.6814]
[1745511042156,6.6799,149.66,149.63,6.6806]
[1745511042356,24.92,149.68,149.63,6.6806]
[1745511042655,6.6804,149.65,149.63,6.6806]
[1745511042955,6.6804,149.65,149.62,6.6812]
[1745511043256,6.6806,149.64,149.62,6.6812]
[1745511043755,6.6803,149.65,149.62,6.6812]
[1745511044257,6.6806,149.64,149.62,6.6812]
[1745511046056,24.92,149.68,149.59,24.94]
[1745511046353,12.59722959,149.67,149.59,24.94]
[1745511046558,6.6807,149.64,149.61,6.6816]
[1745511047055,6.6809,149.64,149.61,6.6816]
[1745511047953,24.92,149.68,149.61,6.6816]
[1745511048156,12.59722959,149.67,149.57,5.9418]
[1745511048461,12.59722959,149.65,149.56,24.92]
[1745511048655,6.6822,149.61,149.58,6.683]
[1745511049057,6.6822,149.61,149.59,6.6826]
[1745511049359,24.92,149.64,149.58,12.59722959]
[1745511049557,24.92,149.64,149.6,6.6821]
[1745511049857,6.6813,149.63,149.6,6.6821]
[1745511050156,6.6813,149.63,149.61,6.6817]
[1745511050357,31.6007,149.64,149.61,6.6817]
[1745511050654,24.92,149.64,149.62,6.6812]
[1745511050858,6.6812,149.63,149.58,12.59722959]
[1745511051058,24.92,149.64,149.58,12.59722959]
[1745511051256,24.92,149.64,149.56,37.51722959]
[1745511051962,24.92,149.64,149.58,6.6829]
[1745511052263,6.6822,149.61,149.58,6.6829]
[1745511052758,24.92,149.64,149.58,6.6829]
[1745511052964,24.92,149.64,149.57,6.6835]
[1745511052965,6.6826,149.6,149.57,6.6835]
[1745511053165,24.92,149.64,149.56,37.51722959]
[1745511053462,6.682,149.61,149.56,37.51722959]
[1745511054164,6.682,149.61,149.58,6.683]
[1745511054357,6.6816,149.62,149.56,37.51722959]
[1745511054562,6.6816,149.62,149.59,6.6825]
[1745511055666,6.6812,149.63,149.58,12.59722959]
[1745511056068,24.92,149.64,149.58,12.59722959]
[1745511056267,24.92,149.64,149.6,12.59722959]
[1745511056460,24.92,149.67,149.6,12.59722959]
[1745511056863,6.6799,149.66,149.63,6.681]
[1745511057871,6.6801,149.65,149.62,6.6812]
[1745511058468,6.6801,149.65,149.63,6.6808]
[1745511059468,6.6801,149.65,149.62,6.6812]
[1745511059669,37.51722959,149.67,149.58,12.59722959]
[1745511059868,37.51722959,149.67,149.6,6.6823]
[1745511060271,6.6816,149.62,149.56,37.51722959]
[1745511060469,12.59722959,149.65,149.56,37.51722959]
[1745511060670,6.6821,149.61,149.56,37.51722959]
[1745511060869,24.92,149.63,149.57,6.6834]
[1745511061075,24.92,149.63,149.56,37.51722959]
[1745511061376,6.6819,149.61,149.58,6.683]
[1745511061674,24.92,149.63,149.58,6.683]
[1745511062275,24.92,149.63,149.56,37.51722959]
[1745511062474,24.92,149.63,149.58,12.59722959]
[1745511062675,6.6803,149.65,149.6,12.59722959]
[1745511062977,6.6803,149.65,149.62,6.6812]
[1745511063176,6.6806,149.64,149.62,6.6812]
[1745511064978,24.92,149.66,149.6,12.59722959]
[1745511065175,24.92,149.69,149.64,6.6805]
[1745511065381,24.92,149.69,149.62,12.59722959]